bitfinex/quotes_BTCUSD_20251110
["timestamp","ask_amount","ask_price","bid_price","bid_amount"]
[1762774521793,0.6941919,106250.0,106240.0,0.00099788]
[1762774531436,1.02598746,106250.0,106240.0,0.00099788]
[1762774531637,0.6941919,106250.0,106240.0,0.00099788]
[1762774533338,1.02598746,106250.0,106240.0,0.00099788]
[1762774534422,0.6941919,106250.0,106240.0,0.00099788]
[1762774534842,1.02598746,106250.0,106240.0,0.00099788]
[1762774536023,1.02551688,106250.0,106240.0,0.00099788]
[1762774536329,1.02598746,106250.0,106240.0,0.00099788]
[1762774537447,0.6941919,106250.0,106240.0,0.00099788]
[1762774539369,1.02598746,106250.0,106240.0,0.00099788]
[1762774540142,0.6941919,106250.0,106240.0,0.00099788]
[1762774541202,1.02598746,106250.0,106240.0,0.00099788]
[1762774541532,1.12408919,106250.0,106240.0,0.00099788]
[1762774543319,1.02598746,106250.0,106240.0,0.00099788]
[1762774546925,0.99772282,106250.0,106240.0,0.00099788]
[1762774548881,0.99725224,106250.0,106240.0,0.00099788]
[1762774549091,3.34977583,106250.0,106240.0,0.00099788]
[1762774549314,1.96567037,106250.0,106240.0,0.00099788]
[1762774549533,1.5194774,106250.0,106240.0,0.00099788]
[1762774549733,1.58145813,106250.0,106240.0,0.00099788]
[1762774553597,1.38086013,106250.0,106240.0,0.00099788]
[1762774555259,1.3605188,106250.0,106240.0,0.00099788]
[1762774559472,1.1656618,106250.0,106240.0,0.00099788]
[1762774561297,1.16563338,106250.0,106240.0,0.00099788]
[1762774561896,1.1651628,106250.0,106240.0,0.00099788]
[1762774563790,1.52744368,106250.0,106240.0,0.00099788]
[1762774564011,1.59355251,106250.0,106240.0,0.00099788]
[1762774564947,1.58755251,106250.0,106240.0,0.00099788]
[1762774565309,1.59755251,106250.0,106240.0,0.00099788]
[1762774567614,1.56809654,106250.0,106240.0,0.00099788]
[1762774567988,1.10136918,106250.0,106240.0,0.00099788]
[1762774568205,1.10183976,106250.0,106240.0,0.00099788]
[1762774569718,1.05047977,106250.0,106240.0,0.00099788]
[1762774569919,1.09183977,106250.0,106240.0,0.00099788]
[1762774573142,1.07153165,106250.0,106240.0,0.00099788]
[1762774573348,0.7598702,106250.0,106240.0,0.00099788]
[1762774573749,1.09184297,106250.0,106240.0,0.00099788]
[1762774575007,1.09484297,106250.0,106240.0,0.00099788]
[1762774579132,1.09484036,106250.0,106240.0,0.00099788]
[1762774580274,1.09486194,106250.0,106240.0,0.00099788]
[1762774580983,1.19296367,106250.0,106240.0,0.00099788]
[1762774583326,1.19249309,106250.0,106240.0,0.00099788]
[1762774583546,1.19296367,106250.0,106240.0,0.00099788]
[1762774586654,1.19249309,106250.0,106240.0,0.00099788]
[1762774587966,2.96799009,106250.0,106240.0,0.00099788]
[1762774588359,3.34225974,106250.0,106240.0,0.00099788]
[1762774588514,3.34273032,106250.0,106240.0,0.00099788]
[1762774590727,0.18828845,106220.0,106210.0,0.02826872]
[1762774590906,0.69818486,106220.0,106210.0,0.00014442]
[1762774591067,0.66126127,106220.0,106210.0,0.00014442]
[1762774592862,0.68953478,106220.0,106210.0,0.00014442]
[1762774593971,0.69053478,106220.0,106210.0,0.00014442]
[1762774595726,0.70007041,106220.0,106210.0,0.00014442]
[1762774596281,0.70007041,106220.0,106210.0,0.00084455]
[1762774596512,0.79817214,106220.0,106210.0,0.00184455]
[1762774597224,0.79815951,106220.0,106210.0,0.00184455]
[1762774599942,0.78862388,106220.0,106210.0,0.00184455]
[1762774604181,0.7980084,106220.0,106210.0,0.00184455]
[1762774604381,1.06086215,106220.0,106210.0,0.00184455]
[1762774604595,0.69052215,106220.0,106210.0,0.00184455]
[1762774606765,0.73188215,106220.0,106210.0,0.00184455]
[1762774607127,0.70360864,106220.0,106210.0,0.00184455]
[1762774610905,1.03576173,106220.0,106210.0,0.00184455]
[1762774611105,1.10007757,106220.0,106210.0,0.00184455]
[1762774617732,1.03576173,106220.0,106210.0,0.00184455]
[1762774622397,1.03576173,106220.0,106210.0,0.00097455]
[1762774625527,0.6623388,106220.0,106210.0,0.00097455]
[1762774625959,0.14198742,106220.0,106210.0,0.18928073]
[1762774626203,0.04703938,106220.0,106210.0,0.18928073]
[1762774626406,0.01316,106220.0,106210.0,0.19435073]
[1762774626858,0.01316,106220.0,106210.0,0.55468163]
[1762774627963,0.001,106220.0,106210.0,0.55975163]
[1762774629109,0.001,106220.0,106210.0,0.55877708]
[1762774629312,0.001,106220.0,106210.0,0.56077708]
[1762774629722,0.03531,106240.0,106230.0,0.18827073]
[1762774630021,0.22356301,106240.0,106230.0,0.19334073]
[1762774630221,0.23890301,106240.0,106230.0,0.19334073]
[1762774630991,0.23990301,106240.0,106230.0,0.19334073]
[1762774632823,0.57196594,106240.0,106230.0,0.19334073]
[1762774634181,0.23990301,106240.0,106230.0,0.19334073]
[1762774634383,0.57196594,106240.0,106230.0,0.19334073]
[1762774634540,0.23990301,106240.0,106230.0,0.19334073]
[1762774634713,0.57196594,106240.0,106230.0,0.19334073]
[1762774635535,0.57306144,106240.0,106230.0,0.19334073]
[1762774636126,0.24099851,106240.0,106230.0,0.19334073]
[1762774636324,0.57306144,106240.0,106230.0,0.19334073]
[1762774637766,0.0142555,106240.0,106230.0,0.19841073]
[1762774637963,0.19034851,106240.0,106230.0,0.19841073]
[1762774638171,0.53367144,106240.0,106230.0,0.22667263]
[1762774638582,0.57216144,106240.0,106230.0,0.22160263]
[1762774638788,0.57116144,106240.0,106230.0,0.22160263]
[1762774639095,0.57116144,106240.0,106230.0,0.22460263]
[1762774640143,0.57116144,106240.0,106230.0,0.0363319]
[1762774640772,0.57116144,106240.0,106230.0,0.22460263]
[1762774641906,0.57116144,106240.0,106230.0,0.0363319]
[1762774642322,0.57116144,106240.0,106230.0,0.22460263]
[1762774642523,0.57116144,106240.0,106230.0,0.0363319]
[1762774642978,0.9876839,106240.0,106230.0,0.0312619]
[1762774643184,0.9876839,106240.0,106230.0,0.003]
[1762774649528,0.90322437,106240.0,106230.0,0.003]
[1762774650269,0.90322437,106240.0,106230.0,0.19127073]
[1762774652423,0.90322437,106240.0,106230.0,0.003]
[1762774652951,0.90322437,106240.0,106230.0,0.19127073]
[1762774654078,0.34441843,106240.0,106230.0,0.19634073]
[1762774654678,0.53267144,106240.0,106230.0,0.19634073]
[1762774655104,0.54803144,106240.0,106230.0,0.19127073]
[1762774655315,0.38380843,106240.0,106230.0,0.19127073]
[1762774656460,0.57206144,106240.0,106230.0,0.19127073]
[1762774656681,0.38380843,106240.0,106230.0,0.19127073]
[1762774656918,0.0123555,106240.0,106230.0,0.19634073]
[1762774657156,0.33315843,106240.0,106230.0,0.20141073]
[1762774657363,0.33315843,106240.0,106230.0,0.22967263]
[1762774657598,0.33315843,106240.0,106230.0,0.22460263]
[1762774658853,0.52141144,106240.0,106230.0,0.22460263]
[1762774659782,0.53362144,106240.0,106230.0,0.22460263]
[1762774660143,0.20155851,106240.0,106230.0,0.22460263]
[1762774660354,0.53362144,106240.0,106230.0,0.22460263]
[1762774660996,0.34536843,106240.0,106230.0,0.22460263]
[1762774661396,0.0133055,106240.0,106230.0,0.22460263]
[1762774665082,0.0010955,106240.0,106230.0,0.22460263]
[1762774667058,0.18934851,106240.0,106230.0,0.22460263]
[1762774667477,0.20155851,106240.0,106230.0,0.22460263]
[1762774669334,0.21691851,106240.0,106230.0,0.21953263]
[1762774670843,0.0286655,106240.0,106230.0,0.21953263]
[1762774672028,0.21691851,106240.0,106230.0,0.21953263]
[1762774673032,0.0286655,106240.0,106230.0,0.21953263]
[1762774673942,0.21691851,106240.0,106230.0,0.21953263]
[1762774674383,0.0010955,106240.0,106230.0,0.56148636]
[1762774674784,0.0010955,106240.0,106230.0,0.59766864]
[1762774675467,0.0010955,106240.0,106230.0,0.33340063]
[1762774676251,0.0010955,106240.0,106230.0,0.26585491]
[1762774677949,0.0010955,106240.0,106230.0,0.59766864]
[1762774678498,0.0010955,106240.0,106230.0,0.26585491]
[1762774680716,0.24145851,106240.0,106230.0,0.21953263]
[1762774680923,0.0532055,106240.0,106230.0,0.21953263]
[1762774681185,0.24145851,106240.0,106230.0,0.21953263]
[1762774681421,0.0127855,106240.0,106230.0,0.22460263]
[1762774681636,0.0010955,106240.0,106230.0,0.22967263]
[1762774683027,0.0010955,106240.0,106230.0,0.22460263]
[1762774683230,0.0010955,106240.0,106230.0,0.22967263]
[1762774690862,0.0010955,106240.0,106230.0,0.22460263]
[1762774692815,0.0010955,106240.0,106230.0,0.22967263]
[1762774699311,0.0010955,106240.0,106230.0,0.22460263]
[1762774701732,0.18934851,106240.0,106230.0,0.22460263]
[1762774702296,0.20163851,106240.0,106230.0,0.22460263]
[1762774704321,0.64362028,106240.0,106230.0,0.0312619]
[1762774707301,0.31180655,106240.0,106230.0,0.21953263]
[1762774707528,0.57294224,106240.0,106230.0,0.21953263]
[1762774708057,0.57294224,106240.0,106230.0,0.0312619]
[1762774710756,0.57294224,106240.0,106230.0,0.21953263]
[1762774712187,0.57294224,106240.0,106230.0,0.0312619]
[1762774712362,0.57294224,106240.0,106230.0,0.21953263]
[1762774716609,0.57294224,106240.0,106230.0,0.0312619]
[1762774716773,0.57294224,106240.0,106230.0,0.003]
[1762774718374,0.57294224,106240.0,106230.0,0.03126294]
[1762774719103,0.57294224,106240.0,106230.0,0.21953367]
[1762774719310,0.57294224,106240.0,106230.0,0.19127073]
[1762774721601,0.57294224,106240.0,106230.0,0.003]
[1762774723340,0.57294224,106240.0,106230.0,0.19127073]
[1762774723542,0.57294224,106240.0,106230.0,0.003]
[1762774724529,0.57294224,106240.0,106230.0,0.19127073]
[1762774725142,0.57294224,106240.0,106230.0,0.003]
[1762774727866,0.57294224,106240.0,106230.0,0.03126294]
[1762774728506,0.65764395,106240.0,106230.0,0.03126294]
[1762774728706,1.35474228,106240.0,106230.0,0.003]
[1762774729126,1.72838664,106240.0,106230.0,0.003]
[1762774729326,1.39657291,106240.0,106230.0,0.003]
[1762774729611,1.04351591,106240.0,106230.0,0.003]
[1762774730019,0.97525591,106240.0,106230.0,0.003]
[1762774730169,1.01661591,106240.0,106230.0,0.003]
[1762774730509,1.01661591,106240.0,106230.0,0.00255]
[1762774730723,0.97525591,106240.0,106230.0,0.001]
[1762774730933,0.96444205,106240.0,106230.0,0.002]
[1762774731132,0.96444205,106240.0,106230.0,0.001]
[1762774731331,0.96444205,106240.0,106230.0,0.002]
[1762774731520,0.92308205,106240.0,106230.0,0.002]
[1762774731880,0.96444205,106240.0,106230.0,0.002]
[1762774733918,0.39823157,106240.0,106230.0,0.002]
[1762774734122,1.06254378,106240.0,106230.0,0.002]
[1762774740005,1.87688578,106240.0,106230.0,0.002]
[1762774740844,1.90515306,106240.0,106230.0,0.002]
[1762774741845,1.88199906,106240.0,106230.0,0.002]
[1762774742050,1.69663006,106240.0,106230.0,0.002]
[1762774742444,1.67199906,106240.0,106230.0,0.002]
[1762774743603,1.43326106,106240.0,106230.0,0.002]
[1762774744866,1.43279043,106240.0,106230.0,0.002]
[1762774745077,1.75579043,106240.0,106230.0,0.002]
[1762774749051,1.75577447,106240.0,106230.0,0.002]
[1762774754767,1.7381491,106240.0,106230.0,0.002]
[1762774755021,1.75577966,106240.0,106230.0,0.002]
[1762774755901,2.08770045,106240.0,106230.0,0.002]
[1762774756108,2.08817108,106240.0,106230.0,0.002]
[1762774756326,2.09651851,106240.0,106230.0,0.002]
[1762774756533,2.116836,106240.0,106230.0,0.002]
[1762774756786,0.18830618,106210.0,106200.0,0.03294433]
[1762774757002,0.18830618,106210.0,106200.0,0.00467343]
[1762774757003,0.57101573,106210.0,106200.0,0.00467343]
[1762774757214,0.57119746,106210.0,106200.0,0.00467343]
[1762774758326,0.23927667,106210.0,106200.0,0.00567343]
[1762774758539,0.6418755,106210.0,106200.0,0.00567343]
[1762774758747,0.6418755,106210.0,106200.0,0.00767343]
[1762774761136,0.6418755,106210.0,106200.0,0.19599734]
[1762774761776,0.30995471,106210.0,106200.0,0.19599734]
[1762774762018,0.6418755,106210.0,106200.0,0.19599734]
[1762774763151,0.30995471,106210.0,106200.0,0.19599734]
[1762774763408,0.6418755,106210.0,106200.0,0.19599734]
[1762774763622,0.57119746,106210.0,106200.0,0.19599734]
[1762774764636,0.38289128,106210.0,106200.0,0.19599734]
[1762774765400,0.57119746,106210.0,106200.0,0.19599734]
[1762774769435,0.38289128,106210.0,106200.0,0.19599734]
[1762774770477,0.57119746,106210.0,106200.0,0.19599734]
[1762774770834,0.38289128,106210.0,106200.0,0.19599734]
[1762774771599,0.57119746,106210.0,106200.0,0.19599734]
[1762774771807,0.38289128,106210.0,106200.0,0.19599734]
[1762774772012,0.57119746,106210.0,106200.0,0.19599734]
[1762774772962,0.38289128,106210.0,106200.0,0.19599734]
[1762774773383,9.049e-05,106210.0,106200.0,0.86997892]
[1762774773581,9.049e-05,106210.0,106200.0,0.9344279]
[1762774773781,9.049e-05,106210.0,106200.0,1.2574279]
[1762774774465,9.049e-05,106210.0,106200.0,1.2554279]
[1762774774894,9.049e-05,106210.0,106200.0,1.2574279]
[1762774775104,9.049e-05,106210.0,106200.0,1.34204174]
[1762774775323,9.049e-05,106210.0,106200.0,1.2574279]
[1762774775553,9.049e-05,106210.0,106200.0,1.2564279]
[1762774776026,9.049e-05,106210.0,106200.0,1.2584279]
[1762774777863,9.049e-05,106210.0,106200.0,1.59034869]
[1762774778082,9.049e-05,106210.0,106200.0,1.67496253]
[1762774778784,9.049e-05,106210.0,106200.0,1.67296253]
[1762774779012,9.049e-05,106210.0,106200.0,1.67896253]
[1762774779234,9.049e-05,106210.0,106200.0,1.67696253]
[1762774779453,9.049e-05,106210.0,106200.0,1.68396253]
[1762774779976,9.049e-05,106210.0,106200.0,1.35204174]
[1762774780395,9.049e-05,106210.0,106200.0,1.59934869]
[1762774781048,9.049e-05,106210.0,106200.0,1.2674279]
[1762774783141,9.049e-05,106210.0,106200.0,1.2604279]
[1762774783360,9.049e-05,106210.0,106200.0,1.2594279]
[1762774783589,9.049e-05,106210.0,106200.0,1.2634279]
[1762774787127,9.049e-05,106210.0,106200.0,0.59958632]
[1762774787338,9.049e-05,106210.0,106200.0,0.93150711]
[1762774787637,9.049e-05,106210.0,106200.0,1.2634279]
[1762774793042,9.049e-05,106210.0,106200.0,0.93148836]
[1762774800654,9.049e-05,106210.0,106200.0,0.92641836]
[1762774800862,0.01198049,106210.0,106200.0,0.55833404]
[1762774801681,0.01198049,106210.0,106200.0,0.23533404]
[1762774801885,0.01198049,106210.0,106200.0,0.20706734]
[1762774803299,0.01198049,106210.0,106200.0,0.53896938]
[1762774804072,9.049e-05,106210.0,106200.0,0.53896938]
[1762774805211,9.049e-05,106210.0,106200.0,0.58022166]
[1762774805687,9.049e-05,106210.0,106200.0,0.60848716]
[1762774806317,9.049e-05,106210.0,106200.0,0.93148716]
[1762774808692,9.049e-05,106210.0,106200.0,1.33871522]
[1762774809349,9.049e-05,106210.0,106200.0,1.00681318]
[1762774810115,9.049e-05,106210.0,106200.0,1.15251318]
[1762774812578,9.049e-05,106210.0,106200.0,0.82061114]
[1762774812790,9.049e-05,106210.0,106200.0,1.15251318]
[1762774820727,9.049e-05,106210.0,106200.0,1.07718716]
[1762774831000,1e-08,106250.0,106220.0,0.19202845]
[1762774831209,0.08925396,106270.0,106260.0,0.54739985]
[1762774831210,0.03512428,106270.0,106260.0,0.54739985]
[1762774831413,0.03521492,106270.0,106260.0,1.28221808]
[1762774831647,0.03521492,106270.0,106260.0,1.28595808]
[1762774831844,0.03521492,106270.0,106260.0,1.31420529]
[1762774832242,0.03521492,106270.0,106260.0,1.24693114]
[1762774832389,1e-08,106270.0,106260.0,1.24693114]
[1762774832592,0.05305014,106280.0,106270.0,0.55486214]
[1762774832593,1e-08,106280.0,106270.0,0.55486214]
[1762774832834,1e-08,106290.0,106280.0,0.51866216]
[1762774833073,1e-08,106290.0,106280.0,1.25348039]
[1762774833253,1e-08,106290.0,106280.0,1.22238852]
[1762774833408,1e-08,106290.0,106280.0,1.32790168]
[1762774833607,1e-08,106290.0,106280.0,1.32837213]
[1762774833809,1e-08,106290.0,106280.0,1.31428349]
[1762774834038,1e-08,106290.0,106280.0,1.32428348]
[1762774834237,1e-08,106290.0,106280.0,1.24700934]
[1762774834452,1e-08,106290.0,106280.0,1.25700933]
[1762774834598,1e-08,106290.0,106280.0,1.26400933]
[1762774835911,1e-08,106290.0,106280.0,1.25400934]
[1762774836116,1e-08,106290.0,106280.0,1.26400933]
[1762774837143,0.00139917,106290.0,106280.0,1.26400933]
[1762774837610,0.00139917,106290.0,106280.0,1.25400934]
[1762774840463,0.00139917,106290.0,106280.0,1.27713721]
[1762774841020,0.00139917,106290.0,106280.0,1.25400934]
[1762774848041,0.00139917,106290.0,106280.0,1.37147032]
[1762774850277,0.00139917,106290.0,106280.0,1.03956828]
[1762774854104,0.00139917,106290.0,106280.0,1.03909783]
[1762774854261,0.00139917,106290.0,106280.0,1.03956828]
[1762774854444,0.00139917,106290.0,106280.0,0.71656828]
[1762774854843,0.00139917,106290.0,106280.0,1.04438452]
[1762774855215,0.00139917,106290.0,106280.0,1.04638452]
[1762774855570,0.00139917,106290.0,106280.0,1.36538452]
[1762774855986,0.00139917,106290.0,106280.0,1.36838452]
[1762774857197,0.01889315,106290.0,106280.0,1.36791407]
[1762774859099,0.00139917,106290.0,106280.0,1.36791407]
[1762774859949,0.00139917,106290.0,106280.0,1.36491407]
[1762774860119,0.00139917,106290.0,106280.0,1.36691407]
[1762774860351,0.02777146,106290.0,106280.0,1.36691407]
[1762774861418,0.0189807,106290.0,106280.0,1.36491407]
[1762774861908,0.0189807,106290.0,106280.0,1.36591407]
[1762774865449,0.0189807,106290.0,106280.0,1.04291407]
[1762774865651,0.0189807,106290.0,106280.0,1.36591407]
[1762774868035,0.00139917,106290.0,106280.0,1.36591407]
[1762774870055,0.00139917,106290.0,106280.0,1.03455493]
[1762774870287,0.00139917,106290.0,106280.0,1.36591407]
[1762774872043,0.00139917,106290.0,106280.0,0.70319579]
[1762774872244,0.00139917,106290.0,106280.0,1.36591407]
[1762774875062,0.00139917,106290.0,106280.0,0.70319579]
[1762774875269,0.00139917,106290.0,106280.0,1.36591407]
[1762774875474,0.00139917,106290.0,106280.0,1.03455493]
[1762774875676,0.00139917,106290.0,106280.0,1.36591407]
[1762774875855,0.00139917,106290.0,106280.0,0.99463265]
[1762774877648,0.00139917,106290.0,106280.0,0.99837265]
[1762774878459,0.00139917,106290.0,106280.0,1.32973179]
[1762774880540,0.00139917,106290.0,106280.0,0.66701351]
[1762774880707,0.00139917,106290.0,106280.0,1.32973179]
[1762774886317,0.00139917,106290.0,106280.0,1.39700594]
[1762774886702,0.00139917,106290.0,106280.0,1.25130594]
[1762774892140,0.00139917,106290.0,106280.0,1.39700594]
[1762774893400,0.24022362,106290.0,106280.0,0.26219631]
[1762774893599,0.64690878,106290.0,106280.0,0.003]
[1762774894566,0.64690878,106290.0,106280.0,0.002]
[1762774894792,0.18818216,106280.0,106270.0,0.668999]
[1762774895011,0.23884216,106280.0,106270.0,0.668999]
[1762774895238,0.24000824,106280.0,106270.0,0.668999]
[1762774895638,0.24000824,106280.0,106270.0,0.33763986]
[1762774896066,0.05182608,106280.0,106270.0,0.671999]
[1762774896387,0.24000824,106280.0,106270.0,0.671999]
[1762774898013,0.24000824,106280.0,106270.0,0.526299]
[1762774900187,0.05182608,106280.0,106270.0,0.526299]
[1762774900401,0.24000824,106280.0,106270.0,0.526299]
[1762774900805,0.05182608,106280.0,106270.0,0.526299]
[1762774901012,0.24000824,106280.0,106270.0,0.526299]
[1762774901378,0.24000824,106280.0,106270.0,0.525299]
[1762774901578,0.05182608,106280.0,106270.0,0.523299]
[1762774901778,0.24000824,106280.0,106270.0,0.523299]
[1762774903931,0.24000824,106280.0,106270.0,0.668999]
[1762774906216,0.05182608,106280.0,106270.0,0.668999]
[1762774906538,0.24000824,106280.0,106270.0,0.668999]
[1762774906924,0.05182608,106280.0,106270.0,0.668999]
[1762774908743,0.05182608,106280.0,106270.0,0.69724762]
[1762774910549,0.24000824,106280.0,106270.0,0.69724762]
[1762774912215,0.05182608,106280.0,106270.0,0.69724762]
[1762774913015,0.24000824,106280.0,106270.0,0.69724762]
[1762774913510,0.05182608,106280.0,106270.0,0.69724762]
[1762774913694,0.24000824,106280.0,106270.0,0.69724762]
[1762774914218,0.05182608,106280.0,106270.0,0.69724762]
[1762774915329,0.24000824,106280.0,106270.0,0.69724762]
[1762774915530,0.05182608,106280.0,106270.0,0.69724762]
[1762774915733,0.24000824,106280.0,106270.0,0.69724762]
[1762774916910,0.24000824,106280.0,106270.0,0.36588848]
[1762774919206,0.05182608,106280.0,106270.0,0.36588848]
[1762774919417,0.24000824,106280.0,106270.0,0.36588848]
[1762774920156,0.05182608,106280.0,106270.0,0.36588848]
[1762774920518,0.24000824,106280.0,106270.0,0.36588848]
[1762774921585,0.24000824,106280.0,106270.0,0.17394862]
[1762774921810,0.24000824,106280.0,106270.0,0.36214848]
[1762774923251,0.05182608,106280.0,106270.0,0.36214848]
[1762774923472,0.02796608,106280.0,106270.0,0.36214848]
[1762774923911,0.02796608,106280.0,106270.0,0.69367158]
[1762774924959,0.05232608,106280.0,106270.0,0.69367158]
[1762774925331,0.01258608,106280.0,106270.0,0.69741158]
[1762774925876,0.24168824,106280.0,106270.0,0.69367158]
[1762774926090,0.05350608,106280.0,106270.0,0.69367158]
[1762774926507,0.02914608,106280.0,106270.0,0.69367158]
[1762774926718,0.01258608,106280.0,106270.0,0.69741158]
[1762774926930,0.02914608,106280.0,106270.0,0.69367158]
[1762774927407,0.02914608,106280.0,106270.0,0.54797158]
[1762774928285,0.00116608,106280.0,106270.0,0.55545158]
[1762774931569,0.00116608,106280.0,106270.0,0.98995988]
[1762774932769,0.00116608,106280.0,106270.0,0.99295988]
[1762774932967,0.00116608,106280.0,106270.0,0.99495988]
[1762774933217,0.00116608,106280.0,106270.0,1.22527372]
[1762774934417,0.00116608,106280.0,106270.0,1.14065988]
[1762774937460,0.00116608,106280.0,106270.0,1.47218298]
[1762774937668,0.00116608,106280.0,106270.0,1.22527372]
[1762774938293,0.00116608,106280.0,106270.0,1.55679682]
[1762774938504,0.00116608,106280.0,106270.0,1.22527372]
[1762774939136,0.00116608,106280.0,106270.0,1.22574421]
[1762774940017,0.00116608,106280.0,106270.0,1.08004421]
[1762774945456,0.00116608,106280.0,106270.0,1.41109682]
[1762774945657,1e-08,106290.0,106280.0,0.22436444]
[1762774945887,1e-08,106290.0,106280.0,0.89489064]
[1762774946082,1e-08,106290.0,106280.0,0.56336754]
[1762774946283,1e-08,106290.0,106280.0,0.59160893]
[1762774946518,1e-08,106290.0,106280.0,0.92313203]
[1762774946937,1e-08,106290.0,106280.0,0.92513203]
[1762774947202,1e-08,106290.0,106280.0,0.59360893]
[1762774947859,1e-08,106290.0,106280.0,0.92613203]
[1762774948298,1e-08,106290.0,106280.0,0.59460893]
[1762774950482,1e-08,106290.0,106280.0,0.92613203]
[1762774950681,1e-08,106290.0,106280.0,1.07183203]
[1762774951303,0.00023315,106290.0,106280.0,1.07183203]
[1762774953039,0.00023315,106290.0,106280.0,1.07230248]
[1762774953656,0.00023315,106290.0,106280.0,1.07183203]
[1762774954856,0.00023315,106290.0,106280.0,0.40878583]
[1762774955084,0.00023315,106290.0,106280.0,1.07183203]
[1762774958758,0.05993777,106300.0,106290.0,1.21039293]
[1762774958966,0.05993777,106300.0,106290.0,1.43936936]
[1762774959369,0.05993777,106300.0,106290.0,1.46713768]
[1762774959569,0.05993777,106300.0,106290.0,1.46760809]
[1762774959784,0.05993777,106300.0,106290.0,1.46713768]
[1762774960422,0.05993777,106300.0,106290.0,0.80409148]
[1762774960564,0.05993777,106300.0,106290.0,1.46760809]
[1762774960951,0.05993777,106300.0,106290.0,1.55222193]
[1762774961153,0.05993777,106300.0,106290.0,1.46713768]
[1762774961385,0.05993777,106300.0,106290.0,1.46913768]
[1762774961587,0.05993777,106300.0,106290.0,1.55375152]
[1762774962283,0.05993777,106300.0,106290.0,1.55675152]
[1762774962485,0.05993777,106300.0,106290.0,1.47213768]
[1762774962640,0.05993777,106300.0,106290.0,1.55675152]
[1762774963230,0.05993777,106300.0,106290.0,1.55722193]
[1762774964604,0.06017088,106300.0,106290.0,1.55722193]
[1762774967253,0.06017088,106300.0,106290.0,1.10490271]
[1762774967486,0.06017088,106300.0,106290.0,0.70236628]
[1762774968215,0.06017088,106300.0,106290.0,0.70610628]
[1762774968422,0.06017088,106300.0,106290.0,0.70310628]
[1762774968631,0.06017088,106300.0,106290.0,0.70510628]
[1762774969059,0.06017088,106300.0,106290.0,0.37358318]
[1762774969278,0.06017088,106300.0,106290.0,0.70136628]
[1762774969664,0.06017088,106300.0,106290.0,0.70310628]
[1762774970078,0.07178088,106300.0,106290.0,0.70036628]
[1762774970987,0.06017088,106300.0,106290.0,0.70036628]
[1762774972220,0.07163088,106300.0,106290.0,0.69662628]
[1762774972402,0.07163088,106300.0,106290.0,0.70036628]
[1762774974607,0.07163088,106300.0,106290.0,0.36884318]
[1762774974818,0.07163088,106300.0,106290.0,0.70036628]
[1762774975238,0.25977763,106300.0,106290.0,0.70036628]
[1762774975474,0.07163088,106300.0,106290.0,0.70036628]
[1762774975635,0.25977763,106300.0,106290.0,0.70036628]
[1762774976418,0.07163088,106300.0,106290.0,0.70036628]
[1762774977032,0.07163088,106300.0,106290.0,0.70022729]
[1762774977286,0.25977763,106300.0,106290.0,0.70022729]
[1762774977458,0.08804088,106300.0,106290.0,0.70022729]
[1762774978273,0.27618763,106300.0,106290.0,0.70022729]
[1762774978476,0.08804088,106300.0,106290.0,0.70022729]
[1762774978809,0.27618763,106300.0,106290.0,0.69648729]
[1762774978928,0.11149088,106300.0,106290.0,0.69648729]
[1762774979123,0.29963763,106300.0,106290.0,0.69648729]
[1762774979557,0.27618763,106300.0,106290.0,0.69648729]
[1762774981882,0.08804088,106300.0,106290.0,0.69648729]
[1762774982335,0.27618763,106300.0,106290.0,0.36510318]
[1762774982537,0.27618763,106300.0,106290.0,0.69648729]
[1762774984883,0.63102174,106300.0,106290.0,0.17693873]
[1762774985078,0.63102174,106300.0,106290.0,0.003]
[1762774986678,0.18816445,106290.0,106280.0,0.21642789]
[1762774986878,0.57072856,106290.0,106280.0,0.02824681]
[1762774987083,0.23934445,106290.0,106280.0,0.21642897]
[1762774987495,0.23934445,106290.0,106280.0,0.02824681]
[1762774987708,0.23934445,106290.0,106280.0,0.21642897]
[1762774987919,0.24034445,106290.0,106280.0,0.21642897]
[1762774988527,0.24034445,106290.0,106280.0,0.02824681]
[1762774988730,0.64705458,106290.0,106280.0,0.02824681]
[1762774988934,0.18818216,106280.0,106270.0,0.85285566]
[1762774989139,0.23936216,106280.0,106270.0,0.8811042]
[1762774989951,0.23936216,106280.0,106270.0,0.54972009]
[1762774990161,0.24036216,106280.0,106270.0,0.22672009]
[1762774990365,0.24036216,106280.0,106270.0,0.5581042]
[1762774990826,0.24036216,106280.0,106270.0,0.22672009]
[1762774991026,0.24036216,106280.0,106270.0,0.5581042]
[1762774991430,0.05218,106280.0,106270.0,0.5581042]
[1762774991640,0.02873,106280.0,106270.0,0.5581042]
[1762774992275,0.02873,106280.0,106270.0,0.22672009]
[1762774992487,0.01232,106280.0,106270.0,0.5581042]
[1762774993319,0.01232,106280.0,106270.0,0.23046009]
[1762774993530,0.01232,106280.0,106270.0,0.5618442]
[1762774993952,0.01232,106280.0,106270.0,0.23046009]
[1762774994213,0.01232,106280.0,106270.0,0.5618442]
[1762774995311,0.001,106280.0,106270.0,0.5618442]
[1762774995554,0.001,106280.0,106270.0,0.5655842]
[1762774995776,0.001,106280.0,106270.0,0.89696831]
[1762774996423,0.001,106280.0,106270.0,0.93315059]
[1762774996628,0.001,106280.0,106270.0,1.00847661]
[1762774997106,0.001,106280.0,106270.0,1.33147661]
[1762774997337,0.001,106280.0,106270.0,1.3319471]
[1762774997551,0.07163088,106300.0,106270.0,1.3319471]
[1762774997770,0.07163088,106300.0,106290.0,0.52328856]
[1762774998229,0.08804088,106300.0,106290.0,0.55153396]
[1762774998435,0.29963763,106300.0,106290.0,0.55153396]
[1762774998642,0.11149088,106300.0,106290.0,0.55153396]
[1762774999089,0.11249088,106300.0,106290.0,0.55153396]
[1762774999286,0.08904088,106300.0,106290.0,0.55153396]
[1762775000139,0.09004088,106300.0,106290.0,0.55153396]
[1762775000939,0.09004088,106300.0,106290.0,0.22014985]
[1762775001240,0.11349088,106300.0,106290.0,0.55153396]
[1762775002076,0.09004088,106300.0,106290.0,0.55153396]
[1762775003665,0.07363088,106300.0,106290.0,0.55153396]
[1762775003879,0.08875088,106300.0,106290.0,0.54779396]
[1762775004074,0.11313088,106300.0,106290.0,0.54779396]
[1762775006654,0.08875088,106300.0,106290.0,0.54779396]
[1762775006860,0.08875088,106300.0,106290.0,0.21640985]
[1762775007074,0.08875088,106300.0,106290.0,0.54779396]
[1762775010266,0.06217088,106300.0,106290.0,0.88665807]
[1762775010478,0.06217088,106300.0,106290.0,0.55527396]
[1762775010887,0.06217088,106300.0,106290.0,0.88665807]
[1762775011218,0.06217088,106300.0,106290.0,0.55527396]
[1762775011219,0.06117088,106300.0,106290.0,0.55527396]
[1762775011421,0.06017088,106300.0,106290.0,0.22388985]
[1762775011620,0.06017088,106300.0,106290.0,0.55727396]
[1762775011822,0.06017088,106300.0,106290.0,0.55827396]
[1762775015115,0.06017088,106300.0,106290.0,0.70397396]
[1762775020217,0.06017088,106300.0,106290.0,0.70444437]